[Event "NJSK 2023 Jeugd A"]
[Site "Almelo, Netherlands"]
[Date "2023.05.05"]
[Round "6.6"]
[White "Knol, Daniel"]
[Black "Alvares, Thomas"]
[Result "1-0"]
[TimeControl "90min/40moves + 30min + 30sec/move"]
[WhiteElo "1819"]
[BlackElo "1825"]

1. e4 {[%clk 01:30:59]} c5 {[%clk 01:30:52]} {[%emt 00:00:09]} 2. c3 {[%clk
01:31:24]} {[%emt 00:00:04]} Nf6 {[%clk 01:31:13]} {[%emt 00:00:08]} 3. e5
{[%clk 01:31:53]} {[%emt 00:00:02]} Nd5 {[%clk 01:31:36]} {[%emt 00:00:07]} 4.
Nf3 {[%clk 01:32:19]} {[%emt 00:00:03]} d6 {[%clk 01:31:56]} {[%emt 00:00:10]}
5. d4 {[%clk 01:32:41]} {[%emt 00:00:09]} cxd4 {[%clk 01:31:38]} {[%emt
00:00:48]} 6. cxd4 {[%clk 01:31:59]} {[%emt 00:01:11]} Nc6 {[%clk 01:29:59]}
{[%emt 00:02:09]} 7. Bc4 {[%clk 01:32:20]} {[%emt 00:00:10]} e6 {[%clk
01:26:10]} {[%emt 00:04:19]} 8. O-O {[%clk 01:32:17]} {[%emt 00:00:32]} Be7
{[%clk 01:20:47]} {[%emt 00:05:54]} 9. Qe2 {[%clk 01:32:15]} {[%emt 00:00:32]}
O-O {[%clk 01:04:42]} {[%emt 00:16:34]} 10. Rd1 {[%clk 01:32:31]} {[%emt
00:00:15]} Qc7 {[%clk 01:03:04]} {[%emt 00:02:07]} 11. Bd2 {[%clk 01:31:32]}
{[%emt 00:01:29]} Bd7 {[%clk 00:56:34]} {[%emt 00:07:00]} 12. Nc3 {[%clk
01:31:27]} {[%emt 00:00:35]} Nxc3 {[%clk 00:55:05]} {[%emt 00:02:00]} 13. Bxc3
{[%clk 01:31:56]} d5 {[%clk 00:51:27]} {[%emt 00:04:07]} 14. Bd3 {[%clk
01:31:36]} {[%emt 00:00:50]} a6 {[%clk 00:49:43]} {[%emt 00:02:14]} 15. h4
{[%clk 01:26:13]} {[%emt 00:05:52]} Rae8 {[%clk 00:47:24]} {[%emt 00:02:50]} 16.
Ng5 {[%clk 01:22:21]} {[%emt 00:04:22]} Bxg5 {[%clk 00:39:47]} {[%emt
00:08:07]} 17. hxg5 {[%clk 01:22:49]} {[%emt 00:00:01]} Ne7 {[%clk 00:39:50]}
{[%emt 00:00:28]} 18. Bb4 {[%clk 01:20:25]} {[%emt 00:02:55]} Kh8 {[%clk
00:32:47]} {[%emt 00:07:32]} 19. Rac1 {[%clk 01:17:44]} {[%emt 00:03:11]} Qd8
{[%clk 00:32:47]} {[%emt 00:00:31]} 20. Rc3 {[%clk 00:55:05]} {[%emt 00:23:09]}
Rg8 {[%clk 00:31:51]} {[%emt 00:01:25]} 21. Bxh7 {[%clk 00:54:16]} {[%emt
00:01:18]} 1-0

[Event "NJSK 2023 Jeugd A"]
[Site "Almelo, Netherlands"]
[Date "2023.05.05"]
[Round "6.7"]
[White "Van Rootselaar, Rik"]
[Black "Smid, Jelle"]
[Result "0-1"]
[TimeControl "90min/40moves + 30min + 30sec/move"]
[WhiteElo "1812"]
[BlackElo "1776"]

1. e4 {[%clk 01:30:55]} {[%emt 00:00:03]} e6 {[%clk 01:30:57]} {[%emt
00:00:05]} 2. d4 {[%clk 01:31:21]} {[%emt 00:00:03]} d5 {[%clk 01:31:24]}
{[%emt 00:00:04]} 3. Nd2 {[%clk 01:31:41]} {[%emt 00:00:10]} c5 {[%clk
01:31:49]} {[%emt 00:00:04]} 4. exd5 {[%clk 01:31:38]} {[%emt 00:00:33]} Qxd5
{[%clk 01:32:02]} {[%emt 00:00:18]} 5. Ngf3 {[%clk 01:31:55]} {[%emt 00:00:12]}
cxd4 {[%clk 01:32:11]} {[%emt 00:00:21]} 6. Bc4 {[%clk 01:32:05]} {[%emt
00:00:20]} Qd6 {[%clk 01:32:36]} {[%emt 00:00:06]} 7. O-O {[%clk 01:32:10]}
{[%emt 00:00:23]} Nf6 {[%clk 01:32:57]} {[%emt 00:00:09]} 8. Nb3 {[%clk
01:32:25]} {[%emt 00:00:16]} Nc6 {[%clk 01:33:21]} {[%emt 00:00:07]} 9. Nbxd4
{[%clk 01:32:29]} {[%emt 00:00:25]} Nxd4 {[%clk 01:33:44]} {[%emt 00:00:07]} 10.
Nxd4 {[%clk 01:32:45]} {[%emt 00:00:14]} Be7 {[%clk 01:33:36]} {[%emt
00:00:38]} 11. c3 {[%clk 01:32:14]} {[%emt 00:01:01]} O-O {[%clk 01:33:39]}
{[%emt 00:00:27]} 12. Qe2 {[%clk 01:27:44]} {[%emt 00:05:01]} Qc7 {[%clk
01:26:42]} {[%emt 00:07:26]} 13. Bb3 {[%clk 01:23:06]} {[%emt 00:05:08]} a6
{[%clk 01:24:44]} {[%emt 00:02:28]} 14. Re1 {[%clk 01:16:51]} {[%emt 00:06:45]}
Bd6 {[%clk 01:21:17]} {[%emt 00:03:57]} 15. h3 {[%clk 01:15:49]} {[%emt
00:01:32]} Bd7 {[%clk 01:18:55]} {[%emt 00:02:52]} 16. Bg5 {[%clk 01:13:55]}
{[%emt 00:02:24]} Bc6 {[%clk 01:09:03]} {[%emt 00:10:22]} 17. Nxc6 {[%clk
01:12:38]} {[%emt 00:01:46]} Qxc6 {[%clk 01:09:19]} {[%emt 00:00:12]} 18. Bxf6
{[%clk 00:58:40]} {[%emt 00:14:31]} gxf6 {[%clk 01:09:44]} {[%emt 00:00:05]} 19.
Qg4+ {[%clk 00:58:51]} {[%emt 00:00:19]} Kh8 {[%clk 01:10:01]} {[%emt
00:00:12]} 20. Qh4 {[%clk 00:58:43]} {[%emt 00:00:39]} Rg8 {[%clk 01:06:09]}
{[%emt 00:04:22]} 21. Qxf6+ {[%clk 00:57:15]} {[%emt 00:01:58]} Rg7 {[%clk
01:06:33]} {[%emt 00:00:05]} 22. g3 {[%clk 00:50:54]} {[%emt 00:06:52]} Rag8
{[%clk 01:03:03]} {[%emt 00:04:00]} 23. Rad1 {[%clk 00:45:14]} {[%emt
00:06:10]} Be7 {[%clk 00:58:09]} {[%emt 00:05:24]} 24. Qe5 {[%clk 00:45:30]}
{[%emt 00:00:14]} Qf3 {[%clk 00:56:47]} {[%emt 00:01:51]} 25. Re3 {[%clk
00:43:44]} {[%emt 00:02:17]} Qc6 {[%clk 00:55:17]} {[%emt 00:02:01]} 26. Bc2
{[%clk 00:39:56]} {[%emt 00:04:17]} Bc5 {[%clk 00:53:24]} {[%emt 00:02:24]} 27.
Re4 {[%clk 00:38:24]} {[%emt 00:02:02]} f5 {[%clk 00:47:04]} {[%emt 00:06:50]}
28. Re2 {[%clk 00:38:01]} {[%emt 00:00:53]} h5 {[%clk 00:40:50]} {[%emt
00:06:43]} 29. b4 {[%clk 00:33:04]} {[%emt 00:05:26]} Ba7 {[%clk 00:38:59]}
{[%emt 00:02:22]} 30. Rd6 {[%clk 00:32:07]} {[%emt 00:01:27]} Qf3 {[%clk
00:37:57]} {[%emt 00:01:30]} 31. Rxe6 {[%clk 00:31:38]} {[%emt 00:01:01]} Qxg3+
{[%clk 00:37:07]} {[%emt 00:01:21]} 0-1

[Event "NJSK 2023 Jeugd A"]
[Site "Almelo, Netherlands"]
[Date "2023.05.05"]
[Round "6.8"]
[White "Bon, Gijs"]
[Black "Adams, Oscar"]
[Result "0-1"]
[TimeControl "90min/40moves + 30min + 30sec/move"]
[WhiteElo "1805"]
[BlackElo "1760"]

1. e4 {[%clk 01:18:31]} {[%emt 00:12:28]} e5 {[%clk 01:30:55]} {[%emt
00:00:05]} 2. Nf3 {[%clk 01:16:58]} {[%emt 00:02:03]} Nc6 {[%clk 01:31:20]}
{[%emt 00:00:06]} 3. Bb5 {[%clk 01:17:23]} {[%emt 00:00:05]} f5 {[%clk
01:31:33]} {[%emt 00:00:16]} 4. d3 {[%clk 01:17:04]} {[%emt 00:00:50]} Nf6
{[%clk 01:31:02]} {[%emt 00:01:01]} 5. O-O {[%clk 01:16:18]} {[%emt 00:01:16]}
d6 {[%clk 01:30:22]} {[%emt 00:01:09]} 6. Re1 {[%clk 01:14:06]} {[%emt
00:02:41]} Be7 {[%clk 01:29:21]} {[%emt 00:01:32]} 7. Nbd2 {[%clk 01:09:40]}
{[%emt 00:04:56]} O-O {[%clk 01:29:07]} {[%emt 00:00:45]} 8. c3 {[%clk
01:09:37]} {[%emt 00:00:32]} fxe4 {[%clk 01:27:42]} {[%emt 00:01:56]} 9. dxe4
{[%clk 01:09:38]} {[%emt 00:00:28]} h6 {[%clk 01:25:47]} {[%emt 00:02:25]} 10.
Bc4+ {[%clk 01:07:40]} {[%emt 00:02:28]} Kh8 {[%clk 01:24:10]} {[%emt
00:02:07]} 11. h3 {[%clk 01:00:30]} {[%emt 00:07:40]} Qe8 {[%clk 01:22:47]}
{[%emt 00:01:53]} 12. a4 {[%clk 00:57:30]} {[%emt 00:03:30]} Nh5 {[%clk
01:21:37]} {[%emt 00:01:40]} 13. Nf1 {[%clk 00:50:45]} {[%emt 00:07:15]} Qg6
{[%clk 01:18:00]} {[%emt 00:04:07]} 14. Kh2 {[%clk 00:48:25]} {[%emt 00:02:50]}
Bd7 {[%clk 01:11:43]} {[%emt 00:06:48]} 15. Ng3 {[%clk 00:42:55]} {[%emt
00:05:59]} Nf4 {[%clk 00:53:13]} {[%emt 00:18:59]} 16. Bxf4 {[%clk 00:36:19]}
{[%emt 00:07:06]} Rxf4 {[%clk 00:53:04]} {[%emt 00:00:39]} 17. Ne2 {[%clk
00:35:21]} {[%emt 00:01:28]} Rf6 {[%clk 00:38:39]} {[%emt 00:14:55]} 18. Ng3
{[%clk 00:25:33]} {[%emt 00:10:19]} Raf8 {[%clk 00:35:36]} {[%emt 00:03:33]} 19.
Nh4 {[%clk 00:24:23]} {[%emt 00:01:39]} Qh7 {[%clk 00:33:17]} {[%emt 00:02:49]}
20. Nhf5 {[%clk 00:22:42]} {[%emt 00:02:12]} Bd8 {[%clk 00:32:24]} {[%emt
00:01:22]} 21. f3 {[%clk 00:19:33]} {[%emt 00:03:39]} Ne7 {[%clk 00:31:45]}
{[%emt 00:01:10]} 22. Ne3 {[%clk 00:18:59]} {[%emt 00:01:03]} h5 {[%clk
00:30:52]} {[%emt 00:01:24]} 23. a5 {[%clk 00:11:51]} {[%emt 00:07:38]} a6
{[%clk 00:29:51]} {[%emt 00:01:32]} 24. Qb3 {[%clk 00:10:56]} {[%emt 00:01:24]}
Bc8 {[%clk 00:29:32]} {[%emt 00:00:49]} 25. Nd5 {[%clk 00:06:49]} {[%emt
00:04:37]} Nxd5 {[%clk 00:29:49]} {[%emt 00:00:13]} 26. exd5 {[%clk 00:06:42]}
{[%emt 00:00:36]} Rf4 {[%clk 00:28:28]} {[%emt 00:01:52]} 27. Rad1 {[%clk
00:05:01]} {[%emt 00:02:11]} Bh4 {[%clk 00:24:26]} {[%emt 00:03:37]} 28. Bd3
{[%clk 00:05:30]} Bxg3+ {[%clk 00:24:13]} {[%emt 00:01:39]} 29. Kxg3 {[%clk
00:05:55]} {[%emt 00:00:05]} Qh6 {[%clk 00:24:31]} {[%emt 00:00:13]} 30. Kh2
{[%clk 00:01:48]} {[%emt 00:04:36]} Rxf3 {[%clk 00:23:54]} {[%emt 00:01:07]} 31.
gxf3 {[%clk 00:01:19]} {[%emt 00:00:59]} Qf4+ {[%clk 00:24:15]} {[%emt
00:00:09]} 32. Kg1 {[%clk 00:00:34]} {[%emt 00:01:14]} Qg3+ {[%clk 00:24:37]}
{[%emt 00:00:09]} 33. Kh1 {[%clk 00:00:52]} {[%emt 00:00:11]} Qxf3+ {[%clk
00:25:00]} {[%emt 00:00:08]} 34. Kg1 {[%clk 00:01:03]} {[%emt 00:00:19]} Qg3+
{[%clk 00:25:22]} {[%emt 00:00:08]} 35. Kh1 {[%clk 00:01:28]} {[%emt 00:00:05]}
Rf2 {[%clk 00:25:39]} {[%emt 00:00:13]} 0-1

[Event "NJSK 2023 Jeugd A"]
[Site "Almelo, Netherlands"]
[Date "2023.05.06"]
[Round "7.1"]
[White "Slagboom, Leandro"]
[Black "Van der Hagen, Loek"]
[Result "0-1"]
[TimeControl "90min/40moves + 30min + 30sec/move"]
[WhiteElo "2228"]
[BlackElo "2273"]

1. d4 {[%clk 01:30:57]} {[%emt 00:00:02]} Nf6 {[%clk 01:30:53]} {[%emt
00:00:08]} 2. c4 {[%clk 01:31:20]} {[%emt 00:00:07]} g6 {[%clk 01:31:17]}
{[%emt 00:00:06]} 3. Nc3 {[%clk 01:31:46]} {[%emt 00:00:05]} d5 {[%clk
01:29:53]} {[%emt 00:01:54]} 4. cxd5 {[%clk 01:31:44]} {[%emt 00:00:32]} Nxd5
{[%clk 01:30:18]} {[%emt 00:00:06]} 5. e4 {[%clk 01:32:09]} {[%emt 00:00:05]}
Nxc3 {[%clk 01:30:43]} {[%emt 00:00:05]} 6. bxc3 {[%clk 01:32:36]} {[%emt
00:00:03]} Bg7 {[%clk 01:31:06]} {[%emt 00:00:07]} 7. Bc4 {[%clk 01:32:32]}
{[%emt 00:00:34]} c5 {[%clk 01:30:15]} {[%emt 00:01:21]} 8. Ne2 {[%clk
01:32:37]} {[%emt 00:00:25]} O-O {[%clk 01:30:35]} {[%emt 00:00:10]} 9. O-O
{[%clk 01:32:43]} {[%emt 00:00:24]} Nc6 {[%clk 01:30:53]} {[%emt 00:00:12]} 10.
Be3 {[%clk 01:33:07]} {[%emt 00:00:05]} Bg4 {[%clk 01:30:45]} {[%emt 00:00:38]}
11. f3 {[%clk 01:33:30]} {[%emt 00:00:07]} Na5 {[%clk 01:30:10]} {[%emt
00:01:06]} 12. Bxf7+ {[%clk 01:33:54]} {[%emt 00:00:05]} Rxf7 {[%clk 01:30:36]}
{[%emt 00:00:04]} 13. fxg4 {[%clk 01:34:18]} {[%emt 00:00:06]} Rxf1+ {[%clk
01:30:28]} {[%emt 00:00:38]} 14. Kxf1 {[%clk 01:34:41]} {[%emt 00:00:07]} Qd6
{[%clk 01:30:37]} {[%emt 00:00:21]} 15. e5 {[%clk 01:34:43]} {[%emt 00:00:29]}
Qe6 {[%clk 01:27:37]} {[%emt 00:03:30]} 16. Nf4 {[%clk 01:32:43]} {[%emt
00:02:29]} Rf8 {[%clk 01:16:05]} {[%emt 00:12:02]} 17. Kg1 {[%clk 01:32:55]}
{[%emt 00:00:18]} Qf7 {[%clk 01:16:22]} {[%emt 00:00:14]} 18. Qe2 {[%clk
01:07:02]} {[%emt 00:26:23]} Bh6 {[%clk 00:54:56]} {[%emt 00:21:56]} 19. g3
{[%clk 00:45:09]} {[%emt 00:22:24]} Qc4 {[%clk 00:54:10]} {[%emt 00:01:16]} 20.
Qd2 {[%clk 00:38:47]} {[%emt 00:06:51]} Rd8 {[%clk 00:47:01]} {[%emt 00:07:39]}
21. Qb2 {[%clk 00:17:56]} {[%emt 00:21:21]} Bxf4 {[%clk 00:35:42]} {[%emt
00:11:49]} 22. gxf4 {[%clk 00:17:21]} {[%emt 00:01:05]} Qd3 {[%clk 00:36:07]}
{[%emt 00:00:04]} 23. Kf2 {[%clk 00:09:23]} {[%emt 00:08:28]} Qxe3+ {[%clk
00:30:39]} {[%emt 00:05:59]} 24. Kxe3 {[%clk 00:09:49]} {[%emt 00:00:04]} Nc4+
{[%clk 00:31:04]} {[%emt 00:00:05]} 25. Ke4 {[%clk 00:09:20]} {[%emt 00:00:59]}
Nxb2 {[%clk 00:31:27]} {[%emt 00:00:07]} 26. a4 {[%clk 00:07:18]} {[%emt
00:02:32]} Nc4 {[%clk 00:29:19]} {[%emt 00:02:38]} 27. Ra2 {[%clk 00:05:28]}
{[%emt 00:02:20]} e6 {[%clk 00:23:30]} {[%emt 00:06:20]} 28. Rf2 {[%clk
00:05:11]} {[%emt 00:00:46]} cxd4 {[%clk 00:22:03]} {[%emt 00:01:58]} 29. cxd4
{[%clk 00:05:37]} {[%emt 00:00:04]} a6 {[%clk 00:19:29]} {[%emt 00:03:04]} 30.
f5 {[%clk 00:05:26]} {[%emt 00:00:41]} gxf5+ {[%clk 00:17:32]} {[%emt
00:02:27]} 31. gxf5 {[%clk 00:05:55]} exf5+ {[%clk 00:16:46]} {[%emt 00:01:16]}
32. Rxf5 {[%clk 00:06:24]} Nd2+ {[%clk 00:14:17]} {[%emt 00:02:59]} 33. Ke3
{[%clk 00:03:05]} {[%emt 00:03:48]} Nb3 {[%clk 00:14:46]} {[%emt 00:00:01]} 34.
Rf4 {[%clk 00:03:18]} {[%emt 00:00:17]} b5 {[%clk 00:11:45]} {[%emt 00:03:31]}
35. axb5 {[%clk 00:03:45]} {[%emt 00:00:03]} axb5 {[%clk 00:12:13]} {[%emt
00:00:01]} 36. Kd3 {[%clk 00:02:57]} {[%emt 00:01:18]} Nc5+ {[%clk 00:12:05]}
{[%emt 00:00:38]} 37. Kc3 {[%clk 00:03:09]} {[%emt 00:00:18]} Ne6 {[%clk
00:12:14]} {[%emt 00:00:21]} 38. Rh4 {[%clk 00:00:41]} {[%emt 00:02:58]} Kg7
{[%clk 00:12:32]} {[%emt 00:00:12]} 39. h3 {[%clk 00:00:49]} {[%emt 00:00:23]}
Kg6 {[%clk 00:12:17]} {[%emt 00:00:45]} 40. Rg4+ {[%clk 00:00:48]} {[%emt
00:00:31]} Kf5 {[%clk 00:12:07]} {[%emt 00:00:39]} 41. Rh4 {[%clk 00:00:52]}
{[%emt 00:00:26]} Rd7 {[%clk 00:12:10]} {[%emt 00:00:28]} 42. d5 {[%clk
00:29:00]} {[%emt 00:02:23]} Rxd5 {[%clk 00:41:18]} {[%emt 00:01:21]} 43. Rxh7
{[%clk 00:27:17]} {[%emt 00:02:12]} Kxe5 {[%clk 00:41:04]} {[%emt 00:00:45]} 44.
Kb4 {[%clk 00:25:22]} {[%emt 00:02:25]} Kd6 {[%clk 00:41:11]} {[%emt 00:00:23]}
45. h4 {[%clk 00:23:07]} {[%emt 00:02:45]} Kc6 {[%clk 00:41:09]} {[%emt
00:00:32]} 46. h5 {[%clk 00:18:56]} {[%emt 00:04:41]} Rd4+ {[%clk 00:41:20]}
{[%emt 00:00:19]} 47. Kb3 {[%clk 00:17:41]} {[%emt 00:01:45]} Kc5 {[%clk
00:41:42]} {[%emt 00:00:08]} 48. Rh8 {[%clk 00:16:43]} {[%emt 00:01:28]} Rd3+
{[%clk 00:41:42]} {[%emt 00:00:30]} 49. Kc2 {[%clk 00:12:05]} {[%emt 00:05:07]}
Rh3 {[%clk 00:42:02]} {[%emt 00:00:10]} 50. h6 {[%clk 00:11:28]} {[%emt
00:01:08]} Kb4 {[%clk 00:42:13]} {[%emt 00:00:18]} 51. Kd2 {[%clk 00:10:51]}
{[%emt 00:01:07]} Nc5 {[%clk 00:41:14]} {[%emt 00:01:29]} 52. Ke2 {[%clk
00:09:30]} {[%emt 00:01:51]} Kc4 {[%clk 00:40:29]} {[%emt 00:01:15]} 53. Kf2
{[%clk 00:08:29]} {[%emt 00:01:31]} b4 {[%clk 00:40:45]} {[%emt 00:00:14]} 54.
Kg2 {[%clk 00:08:35]} {[%emt 00:00:24]} Rh5 {[%clk 00:41:14]} {[%emt 00:00:01]}
55. Kg3 {[%clk 00:08:05]} {[%emt 00:01:00]} b3 {[%clk 00:41:00]} {[%emt
00:00:44]} 56. Kg4 {[%clk 00:08:17]} {[%emt 00:00:18]} Rh1 {[%clk 00:41:21]}
{[%emt 00:00:09]} 57. h7 {[%clk 00:08:25]} {[%emt 00:00:22]} b2 {[%clk
00:40:20]} {[%emt 00:01:32]} 58. Rb8 {[%clk 00:08:44]} {[%emt 00:00:11]} Nb3
{[%clk 00:40:43]} {[%emt 00:00:07]} 59. Rc8+ {[%clk 00:08:58]} {[%emt
00:00:16]} Kd5 {[%clk 00:40:43]} {[%emt 00:00:29]} 60. Rd8+ {[%clk 00:08:59]}
{[%emt 00:00:30]} Kc6 {[%clk 00:41:07]} {[%emt 00:00:06]} 0-1

[Event "NJSK 2023 Jeugd A"]
[Site "Almelo, Netherlands"]
[Date "2023.05.06"]
[Round "7.2"]
[White "Moskalets, Sofiia"]
[Black "De Winter, Arthur"]
[Result "0-1"]
[TimeControl "90min/40moves + 30min + 30sec/move"]
[WhiteElo "1722"]
[BlackElo "2374"]

1. e4 {[%clk 01:30:43]} {[%emt 00:00:16]} c5 {[%clk 01:30:58]} {[%emt
00:00:02]} 2. Nf3 {[%clk 01:31:05]} {[%emt 00:00:08]} Nc6 {[%clk 01:31:25]}
{[%emt 00:00:03]} 3. Bb5 {[%clk 01:31:27]} {[%emt 00:00:08]} e6 {[%clk
01:31:51]} {[%emt 00:00:03]} 4. Bxc6 {[%clk 01:31:34]} {[%emt 00:00:24]} bxc6
{[%clk 01:32:17]} {[%emt 00:00:04]} 5. d3 {[%clk 01:30:32]} {[%emt 00:01:33]}
Qc7 {[%clk 01:32:44]} {[%emt 00:00:03]} 6. Nc3 {[%clk 01:29:12]} {[%emt
00:01:51]} e5 {[%clk 01:29:01]} {[%emt 00:04:13]} 7. O-O {[%clk 01:27:09]}
{[%emt 00:02:32]} Be7 {[%clk 01:23:23]} {[%emt 00:06:09]} 8. Qe2 {[%clk
01:24:47]} {[%emt 00:02:52]} d6 {[%clk 01:23:06]} {[%emt 00:00:47]} 9. h3
{[%clk 01:23:41]} {[%emt 00:01:36]} f5 {[%clk 01:15:15]} {[%emt 00:08:22]} 10.
exf5 {[%clk 01:17:56]} {[%emt 00:06:14]} Bxf5 {[%clk 01:15:41]} {[%emt
00:00:04]} 11. Nh4 {[%clk 01:14:37]} {[%emt 00:03:49]} Bxh4 {[%clk 01:14:30]}
{[%emt 00:01:41]} 12. Qh5+ {[%clk 01:14:52]} {[%emt 00:00:16]} Bg6 {[%clk
01:14:59]} {[%emt 00:00:02]} 13. Qxh4 {[%clk 01:15:12]} {[%emt 00:00:09]} Ne7
{[%clk 01:15:16]} {[%emt 00:00:12]} 14. Qc4 {[%clk 01:07:01]} {[%emt 00:08:41]}
Rb8 {[%clk 01:08:53]} {[%emt 00:06:53]} 15. a3 {[%clk 01:03:29]} {[%emt
00:04:03]} Nf5 {[%clk 00:58:16]} {[%emt 00:11:07]} 16. Ne2 {[%clk 00:50:16]}
{[%emt 00:13:43]} Bf7 {[%clk 00:54:30]} {[%emt 00:04:15]} 17. Qe4 {[%clk
00:49:51]} {[%emt 00:00:55]} Qd7 {[%clk 00:53:57]} {[%emt 00:01:02]} 18. g4
{[%clk 00:37:41]} {[%emt 00:12:40]} Nd4 {[%clk 00:49:21]} {[%emt 00:05:07]} 19.
Nxd4 {[%clk 00:37:40]} {[%emt 00:00:31]} cxd4 {[%clk 00:49:47]} {[%emt
00:00:03]} 20. f4 {[%clk 00:35:08]} {[%emt 00:03:03]} Bd5 {[%clk 00:40:32]}
{[%emt 00:09:45]} 21. Qf5 {[%clk 00:28:55]} {[%emt 00:06:42]} Qxf5 {[%clk
00:40:49]} {[%emt 00:00:14]} 22. gxf5 {[%clk 00:29:20]} {[%emt 00:00:05]} O-O
{[%clk 00:41:13]} {[%emt 00:00:06]} 23. fxe5 {[%clk 00:29:31]} {[%emt
00:00:19]} dxe5 {[%clk 00:41:39]} {[%emt 00:00:04]} 24. b3 {[%clk 00:19:51]}
{[%emt 00:10:11]} e4 {[%clk 00:37:00]} {[%emt 00:05:09]} 25. Bf4 {[%clk
00:15:02]} {[%emt 00:05:18]} Rbd8 {[%clk 00:28:52]} {[%emt 00:08:38]} 26. Bg5
{[%clk 00:12:16]} {[%emt 00:03:16]} Rde8 {[%clk 00:29:01]} {[%emt 00:00:21]} 27.
dxe4 {[%clk 00:08:40]} {[%emt 00:04:06]} Rxe4 {[%emt 00:09:43]} 28. Rae1 {[%clk
00:07:28]} Rxe1 {[%clk 00:19:23]} {[%emt 00:02:38]} 29. Rxe1 {[%clk 00:07:54]}
{[%emt 00:00:04]} Rxf5 {[%clk 00:19:50]} {[%emt 00:00:03]} 30. h4 {[%clk
00:06:19]} {[%emt 00:02:05]} Rf3 {[%clk 00:16:36]} {[%emt 00:03:45]} 31. Rd1
{[%clk 00:05:43]} {[%emt 00:01:06]} h6 {[%clk 00:12:00]} {[%emt 00:05:06]} 32.
Be7 {[%clk 00:05:02]} {[%emt 00:01:11]} Rg3+ {[%clk 00:12:06]} {[%emt
00:00:23]} 33. Kf1 {[%clk 00:05:15]} {[%emt 00:00:16]} Rf3+ {[%clk 00:12:01]}
{[%emt 00:00:35]} 34. Kg1 {[%clk 00:05:41]} {[%emt 00:00:05]} Rf4 {[%clk
00:10:37]} {[%emt 00:01:54]} 35. Rd2 {[%clk 00:04:59]} {[%emt 00:01:13]} a6
{[%clk 00:09:08]} {[%emt 00:01:59]} 36. Rf2 {[%clk 00:04:13]} {[%emt 00:01:15]}
Re4 {[%clk 00:04:26]} {[%emt 00:05:13]} 37. Bd8 {[%clk 00:04:11]} {[%emt
00:00:33]} Kh7 {[%clk 00:04:41]} {[%emt 00:00:13]} 38. Kh2 {[%clk 00:03:30]}
{[%emt 00:01:11]} Kg6 {[%clk 00:04:54]} {[%emt 00:00:16]} 39. Kg3 {[%clk
00:02:47]} {[%emt 00:01:14]} Re3+ {[%clk 00:04:23]} {[%emt 00:01:01]} 40. Kh2
{[%clk 00:02:29]} {[%emt 00:00:49]} Kh5 {[%clk 00:01:10]} {[%emt 00:03:43]} 41.
Rd2 {[%clk 00:29:09]} {[%emt 00:03:49]} Re8 {[%clk 00:27:42]} {[%emt 00:03:57]}
42. Ba5 {[%clk 00:20:49]} {[%emt 00:08:50]} Kxh4 {[%clk 00:26:41]} {[%emt
00:01:31]} 43. Rxd4+ {[%clk 00:21:15]} {[%emt 00:00:06]} Re4 {[%clk 00:25:34]}
{[%emt 00:01:36]} 44. Rxe4+ {[%clk 00:19:14]} {[%emt 00:02:31]} Bxe4 {[%clk
00:26:00]} {[%emt 00:00:04]} 45. c4 {[%clk 00:18:12]} {[%emt 00:01:32]} Kg4
{[%clk 00:26:08]} {[%emt 00:00:21]} 46. b4 {[%clk 00:17:24]} {[%emt 00:01:19]}
Bd3 {[%clk 00:25:58]} {[%emt 00:00:38]} 47. c5 {[%clk 00:16:26]} {[%emt
00:01:30]} g5 {[%clk 00:26:03]} {[%emt 00:00:25]} 48. Bc7 {[%clk 00:16:38]}
{[%emt 00:00:19]} h5 {[%clk 00:25:59]} {[%emt 00:00:33]} 49. Bd8 {[%clk
00:16:43]} {[%emt 00:00:25]} h4 {[%clk 00:26:15]} {[%emt 00:00:14]} 50. a4
{[%clk 00:16:16]} {[%emt 00:00:58]} Kh5 {[%clk 00:23:37]} {[%emt 00:03:07]} 51.
Kh3 {[%clk 00:16:11]} {[%emt 00:00:35]} g4+ {[%clk 00:23:03]} {[%emt 00:01:03]}
52. Kg2 {[%clk 00:16:23]} {[%emt 00:00:19]} Be4+ {[%clk 00:23:15]} {[%emt
00:00:18]} 53. Kh2 {[%clk 00:16:46]} {[%emt 00:00:06]} g3+ {[%clk 00:23:39]}
{[%emt 00:00:07]} 54. Kh3 {[%clk 00:17:03]} {[%emt 00:00:13]} Bf5+ {[%clk
00:24:07]} {[%emt 00:00:02]} 55. Kg2 {[%clk 00:17:26]} {[%emt 00:00:06]} Kg4
{[%clk 00:24:35]} {[%emt 00:00:02]} 56. b5 {[%clk 00:17:31]} {[%emt 00:00:26]}
h3+ {[%clk 00:25:02]} {[%emt 00:00:04]} 0-1